bitfinex/quotes_BTCUSD_20241211
["timestamp","ask_amount","ask_price","bid_price","bid_amount"]
[1733913691409,0.0010858,98040.0,98039.0,0.29319038]
[1733913691974,0.0020858,98040.0,98039.0,0.29319038]
[1733913692575,0.0010858,98040.0,98039.0,0.29319038]
[1733913692943,0.0020858,98040.0,98039.0,0.29319038]
[1733913693146,8.58e-05,98040.0,98039.0,0.29319038]
[1733913693367,0.0010858,98040.0,98039.0,0.29319038]
[1733913694003,0.0010858,98040.0,98039.0,0.08919038]
[1733913694734,8.58e-05,98040.0,98039.0,0.08919038]
[1733913695164,0.0010858,98040.0,98039.0,0.08919038]
[1733913695556,8.58e-05,98040.0,98039.0,0.08919038]
[1733913695967,0.0020858,98040.0,98039.0,0.08919038]
[1733913696168,0.0010858,98040.0,98039.0,0.08919038]
[1733913696447,8.58e-05,98040.0,98039.0,0.08919038]
[1733913696757,0.0010858,98040.0,98039.0,0.08919038]
[1733913697138,0.0020858,98040.0,98039.0,0.08919038]
[1733913697974,0.0020858,98040.0,98039.0,0.00969038]
[1733913698189,0.0010858,98040.0,98039.0,0.00969038]
[1733913698390,0.0010858,98040.0,98030.0,0.0001716]
[1733913698391,0.10741104,98040.0,98030.0,0.0001716]
[1733913698603,0.10532524,98039.0,98030.0,0.0001716]
[1733913698752,0.204012,98034.0,98030.0,0.0001716]
[1733913699934,0.204002,98038.0,98030.0,0.0001716]
[1733913700204,0.2050848,98040.0,98031.0,0.204016]
[1733913700205,0.00447958,98037.0,98031.0,0.204016]
[1733913700402,0.00447958,98039.0,98031.0,0.21371071]
[1733913700607,0.00447958,98038.0,98031.0,0.21371071]
[1733913700811,0.00447958,98039.0,98031.0,0.21371071]
[1733913701233,0.0010858,98040.0,98031.0,0.21371071]
[1733913701674,0.00447958,98039.0,98031.0,0.21371071]
[1733913701872,0.00770687,98040.0,98031.0,0.21371071]
[1733913701873,0.00447958,98038.0,98031.0,0.21371071]
[1733913702071,0.00447958,98037.0,98031.0,0.21371071]
[1733913702274,0.00447958,98039.0,98031.0,0.21371071]
[1733913702475,8.58e-05,98040.0,98031.0,0.21371071]
[1733913702476,0.00447958,98038.0,98031.0,0.21371071]
[1733913702696,0.00447958,98037.0,98031.0,0.21371071]
[1733913702899,0.00447958,98039.0,98031.0,0.21371071]
[1733913703071,0.00547958,98038.0,98031.0,0.21371071]
[1733913703290,0.00447958,98037.0,98031.0,0.21371071]
[1733913703496,0.00447958,98036.0,98031.0,0.21371071]
[1733913703668,0.00447958,98037.0,98031.0,0.21371071]
[1733913703876,0.00447958,98036.0,98031.0,0.21371071]
[1733913704077,0.00447958,98037.0,98031.0,0.21371071]
[1733913704489,0.00447958,98036.0,98031.0,0.21371071]
[1733913704716,0.001,98039.0,98031.0,0.21371071]
[1733913704717,0.00447958,98035.0,98031.0,0.21371071]
[1733913704977,0.00770859,98040.0,98031.0,0.21371071]
[1733913704978,0.00447958,98039.0,98031.0,0.21371071]
[1733913705102,0.001,98036.0,98031.0,0.21371071]
[1733913705505,0.00447958,98035.0,98031.0,0.21371071]
[1733913705714,0.00447958,98034.0,98031.0,0.21371071]
[1733913705911,0.001,98035.0,98031.0,0.21371071]
[1733913706115,0.00447958,98034.0,98031.0,0.21371071]
[1733913707335,0.00447958,98034.0,98031.0,0.41772671]
[1733913707534,0.001,98035.0,98031.0,0.41772671]
[1733913707535,0.001,98035.0,98031.0,0.00969471]
[1733913707806,0.001,98035.0,98034.0,0.20401]
[1733913708027,0.00448339,98038.0,98033.0,0.0776]
[1733913708204,0.00448339,98038.0,98034.0,0.00971035]
[1733913708579,0.00448339,98037.0,98034.0,0.00971035]
[1733913708789,0.00448418,98036.0,98034.0,0.00971035]
[1733913709555,0.00448418,98035.0,98034.0,0.00971035]
[1733913709743,0.00962674,98038.0,98034.0,0.00971035]
[1733913709886,0.00448564,98037.0,98034.0,0.00971035]
[1733913710089,0.00548567,98036.0,98034.0,0.00971035]
[1733913710343,0.01211241,98035.0,98034.0,0.00971035]
[1733913710915,0.00762674,98035.0,98034.0,0.00971035]
[1733913711118,0.01211399,98035.0,98034.0,0.00971035]
[1733913711851,0.01311399,98035.0,98034.0,0.00971035]
[1733913712179,0.001,98035.0,98034.0,0.00971035]
[1733913713271,0.002,98035.0,98034.0,0.00971035]
[1733913713474,0.00649118,98035.0,98034.0,0.00971035]
[1733913717910,0.002,98035.0,98034.0,0.00971035]
[1733913718141,0.00649257,98035.0,98034.0,0.00971035]
[1733913718528,0.00649271,98035.0,98034.0,0.00971035]
[1733913720855,0.00649324,98035.0,98034.0,0.00971035]
[1733913721800,0.002,98035.0,98034.0,0.00971035]
[1733913722019,0.002,98035.0,98034.0,0.38715566]
[1733913722270,0.002,98035.0,98034.0,0.38613559]
[1733913722725,0.002,98035.0,98034.0,0.84681118]
[1733913722931,9.7e-07,98041.0,98036.0,0.15]
[1733913723135,9.7e-07,98041.0,98039.0,0.0806]
[1733913723379,9.7e-07,98041.0,98040.0,0.66028033]
[1733913723592,9.7e-07,98041.0,98040.0,0.66896221]
[1733913725141,9.7e-07,98041.0,98040.0,0.81963026]
[1733913725346,9.7e-07,98041.0,98040.0,0.83008421]
[1733913725793,9.7e-07,98041.0,98040.0,0.69695241]
[1733913725999,9.7e-07,98041.0,98040.0,0.70595241]
[1733913726202,9.7e-07,98041.0,98040.0,0.70596829]
[1733913727240,9.7e-07,98041.0,98040.0,0.84320188]
[1733913728293,9.7e-07,98041.0,98040.0,0.50624066]
[1733913728699,9.7e-07,98041.0,98040.0,0.88876444]
[1733913728929,9.7e-07,98041.0,98040.0,0.88875418]
[1733913729147,9.7e-07,98041.0,98040.0,0.70595365]
[1733913729381,1.20516436,98050.0,98049.0,0.783179]
[1733913729612,0.62262265,98050.0,98049.0,1.09617701]
[1733913729813,0.5639465,98050.0,98049.0,2.15828171]
[1733913730024,0.5435485,98050.0,98049.0,2.15828171]
[1733913730287,0.4619565,98050.0,98049.0,2.15828171]
[1733913730492,0.4619565,98050.0,98049.0,3.04685633]
[1733913730493,0.15952887,98050.0,98049.0,3.04685633]
[1733913730700,0.01321955,98050.0,98049.0,2.15822533]
[1733913730903,0.01321955,98050.0,98049.0,2.87992633]
[1733913731174,5.5e-07,98050.0,98049.0,2.85618433]
[1733913731385,5.5e-07,98050.0,98049.0,2.79240033]
[1733913731592,5.5e-07,98050.0,98049.0,2.1703185]
[1733913731803,5.5e-07,98050.0,98049.0,2.1613185]
[1733913732004,8.58e-05,98080.0,98079.0,0.503917]
[1733913732210,0.00063817,98080.0,98079.0,0.60924224]
[1733913732413,0.00063817,98080.0,98079.0,0.61882808]
[1733913733257,0.00063817,98080.0,98079.0,0.62782808]
[1733913734503,0.00063817,98080.0,98079.0,0.61882808]
[1733913734705,0.00063817,98080.0,98079.0,0.62482808]
[1733913734905,0.00063817,98080.0,98079.0,0.63382808]
[1733913735402,0.00063817,98080.0,98079.0,0.62782808]
[1733913735661,0.00063817,98080.0,98079.0,0.62482808]
[1733913735870,0.00063817,98080.0,98079.0,0.63382808]
[1733913736080,0.00063817,98080.0,98079.0,0.62782808]
[1733913736503,0.00063817,98080.0,98079.0,0.63382808]
[1733913737540,1.7e-07,98080.0,98079.0,0.6349945]
[1733913737997,1.7e-07,98080.0,98079.0,0.66466613]
[1733913738204,1.7e-07,98080.0,98079.0,0.64966613]
[1733913738412,1.7e-07,98080.0,98079.0,0.80866613]
[1733913738624,1.7e-07,98080.0,98079.0,0.81466613]
[1733913739300,1.7e-07,98080.0,98079.0,0.80566613]
[1733913739504,1.7e-07,98080.0,98079.0,0.79966613]
[1733913739827,1.7e-07,98080.0,98079.0,0.80566613]
[1733913740633,1.7e-07,98080.0,98079.0,0.81466613]
[1733913740840,1.7e-07,98080.0,98079.0,0.80566613]
[1733913741238,1.7e-07,98080.0,98079.0,0.80866613]
[1733913741648,1.7e-07,98080.0,98079.0,0.81466613]
[1733913742276,1.7e-07,98080.0,98079.0,0.80866613]
[1733913742452,1.7e-07,98080.0,98079.0,0.80566613]
[1733913743125,1.7e-07,98080.0,98079.0,0.6289945]
[1733913743248,1.7e-07,98080.0,98079.0,0.4849945]
[1733913743685,0.08130017,98080.0,98079.0,0.4849945]
[1733913744021,0.08130017,98080.0,98079.0,0.4939945]
[1733913744159,0.08130017,98080.0,98079.0,0.4849945]
[1733913744338,0.08130017,98080.0,98079.0,0.4919945]
[1733913744540,0.08130017,98080.0,98079.0,0.4789945]
[1733913744947,0.08130017,98080.0,98079.0,0.4919945]
[1733913745205,1.7e-07,98080.0,98079.0,0.4849945]
[1733913745473,1.7e-07,98080.0,98079.0,0.4789945]
[1733913745681,1.7e-07,98080.0,98079.0,0.4869945]
[1733913745929,1.7e-07,98080.0,98079.0,0.4899945]
[1733913746320,1.7e-07,98080.0,98079.0,0.4869945]
[1733913746542,1.7e-07,98080.0,98079.0,0.4909945]
[1733913747414,1.7e-07,98080.0,98079.0,0.4829945]
[1733913747554,1.7e-07,98080.0,98079.0,0.4919945]
[1733913747750,1.7e-07,98080.0,98079.0,0.4879945]
[1733913747952,1.7e-07,98080.0,98079.0,0.4789945]
[1733913748271,1.7e-07,98080.0,98079.0,0.4909945]
[1733913748476,8.597e-05,98080.0,98079.0,0.4819945]
[1733913748722,8.597e-05,98080.0,98079.0,0.7819945]
[1733913748928,8.597e-05,98080.0,98079.0,0.7789945]
[1733913749167,8.597e-05,98080.0,98079.0,0.7829945]
[1733913749804,8.597e-05,98080.0,98079.0,0.7789945]
[1733913750004,8.597e-05,98080.0,98079.0,0.7879945]
[1733913750182,8.597e-05,98080.0,98079.0,0.7789945]
[1733913750433,8.597e-05,98080.0,98079.0,0.4789945]
[1733913750629,8.597e-05,98080.0,98079.0,0.6379945]
[1733913750829,8.597e-05,98080.0,98079.0,0.6289945]
[1733913751165,8.597e-05,98080.0,98079.0,0.4919945]
[1733913751364,8.597e-05,98080.0,98079.0,0.3329945]
[1733913751365,0.07728597,98080.0,98079.0,0.3329945]
[1733913751634,0.07728597,98080.0,98079.0,0.3289945]
[1733913751750,0.07728597,98080.0,98079.0,0.23266926]
[1733913752701,0.07728597,98080.0,98079.0,0.23766926]
[1733913753088,0.07728597,98080.0,98079.0,0.22866926]
[1733913753292,0.07728597,98080.0,98079.0,0.23466926]
[1733913753758,0.07728597,98080.0,98079.0,0.22866926]
[1733913753914,0.07728597,98080.0,98079.0,0.23266926]
[1733913754738,0.07728597,98080.0,98079.0,0.22766926]
[1733913755158,0.07728597,98080.0,98079.0,0.22866926]
[1733913755579,8.597e-05,98080.0,98079.0,0.3329945]
[1733913755789,8.597e-05,98080.0,98079.0,0.4829945]
[1733913755999,8.597e-05,98080.0,98079.0,0.4839945]
[1733913757034,3.669e-05,98090.0,98089.0,0.203896]
[1733913757240,9.298e-05,98090.0,98089.0,0.45922124]
[1733913757626,9.298e-05,98090.0,98089.0,0.46760719]
[1733913758308,0.00109298,98090.0,98089.0,0.46760719]
[1733913758719,9.298e-05,98090.0,98089.0,0.46760719]
[1733913759131,9.298e-05,98090.0,98089.0,0.47060719]
[1733913759551,9.298e-05,98090.0,98089.0,0.47860719]
[1733913761244,9.298e-05,98090.0,98089.0,0.48864812]
[1733913770592,0.08289298,98090.0,98089.0,0.38332288]
[1733913770775,0.08289298,98090.0,98089.0,0.23332288]
[1733913770776,0.13279298,98090.0,98089.0,0.23332288]
[1733913773734,0.13279298,98090.0,98089.0,0.22328195]
[1733913774807,0.13279298,98090.0,98089.0,0.22028195]
[1733913775009,0.13279298,98090.0,98089.0,0.21228195]
[1733913775417,0.13279298,98090.0,98089.0,0.21528195]
[1733913775664,0.13279298,98090.0,98089.0,0.21228195]
[1733913776083,0.13279298,98090.0,98089.0,0.22128195]
[1733913776954,0.13279298,98090.0,98089.0,0.37128195]
[1733913777155,0.13279298,98090.0,98089.0,0.5080072]
[1733913777373,0.13279298,98090.0,98089.0,0.37128195]
[1733913777513,0.13279298,98090.0,98089.0,0.84488354]
[1733913777718,0.13279298,98090.0,98089.0,0.89045862]
[1733913778653,0.13279298,98090.0,98089.0,0.89108185]
[1733913781975,0.13279298,98090.0,98089.0,0.89110223]
[1733913786085,0.13279298,98090.0,98089.0,0.89115287]
[1733913786460,0.08289298,98090.0,98089.0,0.81349072]
[1733913786924,9.298e-05,98090.0,98089.0,0.81349072]
[1733913787470,9.298e-05,98090.0,98089.0,0.81149072]
[1733913787676,9.298e-05,98090.0,98089.0,0.81449072]
[1733913788099,9.298e-05,98090.0,98089.0,0.80749072]
[1733913788520,9.298e-05,98090.0,98089.0,0.81649072]
[1733913790429,9.298e-05,98090.0,98089.0,0.81615744]
[1733913794065,9.298e-05,98090.0,98089.0,0.81644203]
[1733913794932,9.298e-05,98090.0,98089.0,0.81660421]
[1733913799240,9.298e-05,98090.0,98089.0,1.04601338]
[1733913799475,9.298e-05,98090.0,98089.0,1.00061383]
[1733913799698,9.298e-05,98090.0,98089.0,0.81752516]
[1733913801550,0.08029298,98090.0,98089.0,0.81752516]
[1733913803624,0.08029298,98090.0,98089.0,1.04643397]
[1733913807283,0.08029298,98090.0,98089.0,0.94110873]
[1733913807491,0.08029298,98090.0,98089.0,0.94125661]
[1733913807661,0.08029298,98090.0,98089.0,0.94125671]
[1733913807862,0.07988934,98090.0,98089.0,0.94125671]
[1733913811658,0.07988934,98090.0,98089.0,0.94128556]
[1733913814440,0.07988934,98090.0,98089.0,0.94115937]
[1733913815079,0.07988934,98090.0,98089.0,0.37428195]
[1733913815286,0.07988934,98090.0,98089.0,0.60325535]
[1733913815483,0.07988934,98090.0,98089.0,0.94112989]
[1733913817313,0.07988934,98090.0,98089.0,0.71215649]
[1733913818384,0.07997514,98090.0,98089.0,0.71215649]
[1733913828128,0.07997514,98090.0,98089.0,0.71211258]
[1733913832115,0.07997514,98090.0,98089.0,0.71180742]
[1733913833135,0.12767514,98090.0,98089.0,0.56180742]
[1733913833547,0.1321756,98090.0,98089.0,0.74513243]
[1733913833746,0.1321756,98090.0,98089.0,0.22428195]
[1733913834759,0.1321756,98090.0,98089.0,0.31593314]
[1733913835316,0.1321756,98090.0,98089.0,0.02038595]
[1733913835653,0.1321756,98090.0,98089.0,0.01738595]
[1733913835854,0.1321756,98090.0,98089.0,0.00838595]
[1733913836082,0.1321756,98090.0,98089.0,0.009]
[1733913836288,0.13217269,98090.0,98089.0,0.01732706]
[1733913836495,0.13217269,98090.0,98089.0,0.01032706]
[1733913836900,0.13217269,98090.0,98089.0,0.01232706]
[1733913837695,0.13217269,98090.0,98089.0,0.01032706]
[1733913838272,0.13217269,98090.0,98089.0,0.00832706]
[1733913838460,0.13666844,98090.0,98089.0,0.002]
[1733913838599,0.13217089,98090.0,98089.0,0.002]
[1733913838799,0.13217089,98090.0,98087.0,0.203898]
[1733913839150,0.05228155,98090.0,98089.0,0.001]
[1733913839553,0.13448041,98090.0,98089.0,0.00933023]
[1733913840029,0.13448041,98090.0,98089.0,0.00833023]
[1733913840438,0.05228041,98090.0,98087.0,0.204898]
[1733913840636,0.1257858,98090.0,98089.0,0.00833023]
[1733913840867,8.58e-05,98090.0,98088.0,0.00833162]
[1733913841063,8.58e-05,98090.0,98087.0,0.001]
[1733913841064,0.082,98088.0,98087.0,0.001]
[1733913841629,0.1285,98088.0,98081.0,0.203911]
[1733913841827,0.08149449,98087.0,98081.0,0.203911]
[1733913842380,0.0465,98088.0,98081.0,0.203911]
[1733913842381,0.0822,98085.0,98081.0,0.203911]
[1733913843110,0.0822,98085.0,98081.0,0.206911]
[1733913844548,0.0822,98085.0,98081.0,0.203911]
[1733913844753,0.0822,98085.0,98081.0,0.207911]
[1733913845182,0.0822,98085.0,98081.0,0.203911]
[1733913845586,0.0822,98085.0,98081.0,0.204911]
[1733913845788,0.0822,98085.0,98081.0,0.203911]
[1733913846436,0.0822,98085.0,98081.0,0.407823]
[1733913846770,0.0822,98085.0,98084.0,0.15]
[1733913847006,8.58e-05,98090.0,98086.0,0.15]
[1733913847214,8.58e-05,98090.0,98089.0,0.18297807]
[1733913847413,8.58e-05,98090.0,98089.0,0.38687407]
[1733913847657,8.58e-05,98090.0,98089.0,0.71574897]
[1733913848454,8.58e-05,98090.0,98089.0,0.72410582]
[1733913848815,8.58e-05,98090.0,98089.0,0.73010582]
[1733913849406,8.58e-05,98090.0,98089.0,0.54712775]
[1733913850219,8.58e-05,98090.0,98089.0,0.5471034]
[1733913850650,8.58e-05,98090.0,98089.0,0.5461034]
[1733913850872,8.58e-05,98090.0,98089.0,0.5411034]
[1733913851073,8.58e-05,98090.0,98089.0,0.5421034]
[1733913851247,8.58e-05,98090.0,98089.0,0.5461034]
[1733913851494,8.58e-05,98090.0,98089.0,0.5411034]
[1733913851689,8.58e-05,98090.0,98089.0,0.5481034]
[1733913851862,8.58e-05,98090.0,98089.0,0.5501034]
[1733913852065,8.58e-05,98090.0,98089.0,0.5431034]
[1733913852290,8.58e-05,98090.0,98089.0,0.6981034]
[1733913852692,8.58e-05,98090.0,98089.0,0.6911034]
[1733913853814,8.58e-05,98090.0,98089.0,0.6931034]
[1733913853957,8.58e-05,98090.0,98089.0,0.7001034]
[1733913854172,8.58e-05,98090.0,98089.0,0.6931034]
[1733913854577,8.58e-05,98090.0,98089.0,0.70826403]
[1733913854804,8.58e-05,98090.0,98089.0,0.70126403]
[1733913855082,8.58e-05,98090.0,98089.0,0.70326403]
[1733913855307,8.58e-05,98090.0,98089.0,0.71026403]
[1733913855512,8.58e-05,98090.0,98089.0,0.70126403]
[1733913855995,8.58e-05,98090.0,98089.0,0.70826403]
[1733913856955,8.58e-05,98090.0,98089.0,0.71026403]
[1733913857199,8.58e-05,98090.0,98089.0,0.70326403]
[1733913857436,8.58e-05,98090.0,98089.0,0.71026403]
[1733913857734,8.58e-05,98090.0,98089.0,0.70326403]
[1733913857935,8.58e-05,98090.0,98089.0,0.70979122]
[1733913858172,8.58e-05,98090.0,98089.0,0.51863352]
[1733913858346,8.58e-05,98090.0,98089.0,0.47289965]
[1733913859208,8.58e-05,98090.0,98089.0,0.38141348]
[1733913859413,8.58e-05,98090.0,98089.0,0.37125285]
[1733913859414,0.0799858,98090.0,98089.0,0.37125285]
[1733913859612,0.23351104,98090.0,98089.0,0.01735685]
[1733913859813,0.46308291,98090.0,98089.0,0.01735685]
[1733913860043,0.47529033,98090.0,98089.0,0.00696]
[1733913860199,0.47529033,98090.0,98080.0,0.0001716]
[1733913860200,0.203908,98083.0,98080.0,0.0001716]
[1733913860401,0.4545364,98083.0,98080.0,0.0001716]
[1733913860594,0.4545364,98083.0,98082.0,0.97593302]
[1733913860595,0.46091111,98083.0,98082.0,0.97593302]
[1733913860794,0.4545364,98083.0,98082.0,0.97593302]
[1733913861819,0.4555364,98083.0,98082.0,0.97593302]
[1733913866299,0.44835391,98083.0,98082.0,0.97593302]
[1733913867547,0.44735391,98083.0,98082.0,0.97593302]
[1733913867745,0.44072229,98083.0,98082.0,0.97593302]
[1733913867949,0.4483197,98083.0,98082.0,0.97593302]
[1733913868294,0.44070934,98083.0,98082.0,0.97593302]
[1733913868498,0.4483197,98083.0,98082.0,0.97593302]
[1733913872901,0.44831739,98083.0,98082.0,0.97593302]
[1733913873733,0.4438436,98083.0,98082.0,0.97593302]
[1733913873929,0.44831698,98083.0,98082.0,0.97593302]
[1733913875551,0.4554744,98083.0,98082.0,0.97593302]
[1733913876413,0.4544744,98083.0,98082.0,0.97593302]
[1733913876721,0.45547099,98083.0,98082.0,0.97593302]
[1733913876924,0.45099811,98083.0,98082.0,0.97593302]
[1733913877123,0.44831348,98083.0,98082.0,0.97593302]
[1733913879855,0.4483143,98083.0,98082.0,0.97593302]
[1733913881536,0.45547353,98083.0,98082.0,0.97593302]
[1733913882684,0.45100401,98083.0,98082.0,0.97593302]
[1733913882931,0.45548165,98083.0,98082.0,0.97593302]
[1733913884585,0.45548165,98083.0,98082.0,0.97589302]
[1733913887031,0.14624841,98083.0,98082.0,0.97589302]
[1733913887245,0.0324389,98083.0,98082.0,0.97589302]
[1733913887454,0.03881549,98083.0,98082.0,0.97589302]
[1733913888772,0.03870469,98083.0,98082.0,0.97589302]
[1733913889173,0.03254046,98083.0,98082.0,0.97589302]
[1733913889427,0.03891703,98083.0,98082.0,0.97589302]
[1733913889627,0.03764172,98083.0,98082.0,0.97589302]
[1733913889836,0.03664172,98083.0,98082.0,0.97589302]
[1733913890040,0.03154046,98083.0,98082.0,0.97589302]
[1733913890263,0.03254046,98083.0,98082.0,0.97589302]
[1733913891449,0.02085959,98083.0,98082.0,0.97589302]
[1733913891661,0.03255253,98083.0,98082.0,0.97589302]
[1733913891877,0.03155253,98083.0,98082.0,0.97589302]
[1733913892280,0.03255253,98083.0,98082.0,0.97589302]
[1733913892484,0.03155253,98083.0,98082.0,0.97589302]
[1733913893197,0.03255253,98083.0,98082.0,0.97589302]
[1733913894423,0.001,98083.0,98082.0,0.97589302]
[1733913894630,0.03156187,98083.0,98082.0,0.97589302]
[1733913894838,0.01168921,98083.0,98082.0,0.97589302]
[1733913895101,0.01933249,98083.0,98082.0,0.97589302]
[1733913895469,0.01213913,98083.0,98082.0,0.97589302]
[1733913895883,0.01313913,98083.0,98082.0,0.97589302]
[1733913896083,0.01213913,98083.0,98082.0,0.97589302]
[1733913896258,0.0100858,98090.0,98082.0,0.97589302]
[1733913896460,0.0100858,98090.0,98089.0,0.203896]
[1733913896661,0.0100858,98090.0,98089.0,0.2123115]
[1733913896961,0.02221827,98090.0,98089.0,0.2123115]
[1733913897343,0.0100858,98090.0,98089.0,0.2123115]
[1733913902350,0.0100858,98090.0,98089.0,0.22256077]
[1733913903072,0.0100858,98090.0,98089.0,0.2123115]
[1733913905712,0.0100858,98090.0,98089.0,0.31763674]
[1733913905947,0.0100858,98090.0,98089.0,0.39623674]
[1733913906762,0.0100858,98090.0,98089.0,0.54623674]
[1733913906967,0.0100858,98090.0,98089.0,0.63774023]
[1733913907387,0.0100858,98090.0,98089.0,0.64274023]
[1733913907595,0.0100858,98090.0,98089.0,0.54623674]
[1733913908002,0.0100858,98090.0,98089.0,0.63766301]
[1733913908411,0.0100858,98090.0,98089.0,0.54623674]
[1733913908943,0.0100858,98090.0,98089.0,0.55623674]
[1733913909149,0.0100858,98090.0,98089.0,0.54823674]
[1733913909339,0.0100858,98090.0,98089.0,0.54623674]
[1733913909535,0.0100858,98090.0,98089.0,0.55423674]
[1733913909754,0.0100858,98090.0,98089.0,0.57692491]
[1733913911800,0.0100858,98090.0,98089.0,0.56892491]
[1733913912244,0.0100858,98090.0,98089.0,0.57492491]
[1733913912674,0.0100858,98090.0,98089.0,0.58392491]
[1733913913112,0.0100858,98090.0,98089.0,0.56892491]
[1733913913319,0.0100858,98090.0,98089.0,0.57792491]
[1733913913525,0.0100858,98090.0,98089.0,0.57592491]
[1733913914065,0.0100858,98090.0,98089.0,0.57992491]
[1733913914276,0.0100858,98090.0,98089.0,0.72992491]
[1733913915303,0.0100858,98090.0,98089.0,0.71692491]
[1733913915712,0.0100858,98090.0,98089.0,0.72092491]
[1733913915940,0.0100858,98090.0,98089.0,0.72992491]
[1733913922571,0.0100858,98090.0,98089.0,0.50132491]
[1733913934616,0.00921366,98090.0,98089.0,0.50132491]
[1733913936813,0.00921366,98090.0,98089.0,0.96255118]
[1733913937038,0.00921366,98090.0,98089.0,1.14532581]
[1733913937616,0.00921366,98090.0,98089.0,0.96255118]
[1733913937988,0.00929946,98090.0,98089.0,0.96255118]
[1733913938999,0.00929946,98090.0,98089.0,0.65132491]
[1733913939197,0.00929946,98090.0,98089.0,0.96265966]
[1733913939510,0.00929946,98090.0,98089.0,0.65132491]
[1733913939920,0.00929946,98090.0,98089.0,1.19134828]
[1733913940672,0.00929946,98090.0,98089.0,0.96259078]
[1733913941433,0.00929946,98090.0,98089.0,0.96252573]
[1733913942473,0.00929946,98090.0,98089.0,0.96258551]
[1733913943338,0.00929946,98090.0,98089.0,0.96255389]
[1733913945278,0.00929946,98090.0,98089.0,0.96262177]
[1733913946316,0.00929946,98090.0,98089.0,0.81262177]
[1733913946720,0.08729946,98090.0,98089.0,0.68660836]
[1733913946923,0.08729946,98090.0,98089.0,0.2253115]
[1733913947133,0.13878687,98090.0,98089.0,0.22746829]
[1733913947959,0.13878687,98090.0,98089.0,0.22346829]
[1733913948736,0.13878687,98090.0,98089.0,0.21446829]
[1733913948935,0.13878687,98090.0,98089.0,0.21746829]
[1733913952212,0.1387801,98090.0,98089.0,0.21746829]
[1733913952618,0.13429946,98090.0,98089.0,0.21746829]
[1733913960804,0.00929946,98090.0,98089.0,0.36746829]
[1733913961097,0.00929946,98090.0,98089.0,0.47279353]
[1733913961234,0.00929946,98090.0,98089.0,0.96685382]
[1733913961429,0.00929946,98090.0,98089.0,0.78368481]
[1733913961632,0.00929946,98090.0,98089.0,0.93368481]
[1733913962310,0.00929946,98090.0,98089.0,0.93068481]
[1733913962721,0.00929946,98090.0,98089.0,0.93968481]
[1733913963911,0.00929946,98090.0,98089.0,0.94168481]
[1733913964106,0.00929946,98090.0,98089.0,0.93268481]
[1733913964310,0.00929946,98090.0,98089.0,1.16764608]
[1733913964836,0.00929946,98090.0,98089.0,1.16364608]
[1733913964975,0.00929946,98090.0,98089.0,1.17264608]
[1733913967235,0.09029946,98090.0,98089.0,0.93106835]
[1733913967664,0.09029946,98090.0,98089.0,0.48279353]
[1733913967880,0.13569946,98090.0,98089.0,0.31905986]
[1733913970207,0.13569946,98090.0,98089.0,0.31906166]
[1733913970407,0.13569946,98090.0,98089.0,0.31906145]
[1733913973248,0.13569946,98090.0,98089.0,0.31906128]
[1733913973453,0.13569946,98090.0,98089.0,0.31906126]
[1733913974414,0.13569946,98090.0,98089.0,0.22746829]
[1733913977801,0.13569946,98090.0,98089.0,0.02357229]
[1733913977954,0.14735101,98090.0,98089.0,0.02357229]
[1733913978157,0.17167696,98090.0,98089.0,0.02357229]
[1733913978363,0.1549813,98090.0,98089.0,0.02357229]
[1733913978816,0.1549813,98090.0,98089.0,0.01457229]
[1733913979000,0.1549813,98090.0,98089.0,0.01057229]
[1733913979197,0.1549813,98090.0,98089.0,0.01457229]
[1733913979400,0.1549813,98090.0,98089.0,0.004]
[1733913979599,0.1549813,98090.0,98089.0,0.01463398]
[1733913979809,0.1549813,98090.0,98089.0,0.003]
[1733913980011,0.1549813,98090.0,98089.0,0.01363398]
[1733913980163,0.1549813,98090.0,98089.0,0.003]
[1733913980363,0.16135715,98090.0,98089.0,0.01363398]
[1733913980563,0.16135715,98090.0,98089.0,0.003]
[1733913980767,0.14333287,98090.0,98089.0,0.01363398]
[1733913980966,0.15497255,98090.0,98089.0,0.003]
[1733913981148,0.17298808,98090.0,98089.0,0.01363398]
[1733913981725,0.17936393,98090.0,98089.0,0.01363398]
[1733913982932,0.17298808,98090.0,98089.0,0.01363398]
[1733913983349,0.16535467,98090.0,98089.0,0.01363398]
[1733913983895,0.16535467,98090.0,98089.0,0.01063398]
[1733913984103,0.16535467,98090.0,98089.0,0.01163398]
[1733913984308,0.02731499,98090.0,98089.0,0.01163398]
[1733913987076,0.02731499,98090.0,98089.0,0.02195074]
[1733913987463,0.01567531,98090.0,98089.0,0.02195074]
[1733913987682,0.00929946,98090.0,98089.0,0.02195074]
[1733913993293,0.00929946,98090.0,98089.0,0.17195074]
[1733913996981,0.00929946,98090.0,98089.0,0.17095074]
[1733913997249,0.00929946,98090.0,98089.0,0.17495074]
[1733913997618,0.00929946,98090.0,98089.0,0.17095074]
[1733913997834,0.00929946,98090.0,98089.0,0.17495074]
[1733914001813,0.00929946,98090.0,98089.0,0.02495074]
[1733914007388,0.08879946,98090.0,98089.0,0.02495074]
[1733914008121,0.08879946,98090.0,98089.0,0.02095074]
[1733914008545,0.08879946,98090.0,98089.0,0.02295074]
[1733914009717,0.09328344,98090.0,98089.0,0.02295074]
[1733914011020,0.00929946,98090.0,98089.0,0.02295074]
[1733914011169,0.01378423,98090.0,98089.0,0.02295074]
[1733914011348,0.0124334,98090.0,98089.0,0.02295074]
[1733914011744,0.00794863,98090.0,98089.0,0.02295074]
[1733914011999,0.00794863,98090.0,98089.0,0.11450173]
[1733914012781,0.00794863,98090.0,98089.0,0.11452181]
[1733914013541,0.00794863,98090.0,98089.0,0.11453029]
[1733914015226,0.00794863,98090.0,98089.0,0.02295074]
[1733914020509,0.00794863,98090.0,98089.0,0.11452928]
[1733914020770,0.00794863,98090.0,98089.0,0.36985452]
[1733914021019,0.00794863,98090.0,98089.0,0.73885948]
[1733914022070,0.00794863,98090.0,98089.0,0.73685948]
[1733914022309,0.00794863,98090.0,98089.0,0.74585948]
[1733914022591,0.00794863,98090.0,98089.0,0.73685948]
[1733914022806,0.00794863,98090.0,98089.0,0.74085948]
[1733914023378,6.3e-07,98090.0,98089.0,0.74085948]
[1733914023380,6.3e-07,98090.0,98089.0,1.01552867]
[1733914023627,6.3e-07,98090.0,98089.0,0.89085948]
[1733914023882,6.3e-07,98090.0,98089.0,0.89585948]
[1733914025208,6.3e-07,98090.0,98089.0,0.58685948]
[1733914025214,6.3e-07,98090.0,98089.0,0.33153424]
[1733914025215,0.08260063,98090.0,98089.0,0.33153424]
[1733914025217,0.08260063,98090.0,98089.0,0.34053424]
[1733914025219,0.08260063,98090.0,98089.0,0.02495074]
[1733914025220,0.08260063,98090.0,98089.0,0.03395074]
[1733914025433,0.08709744,98090.0,98089.0,0.02095074]
[1733914026104,0.08709744,98090.0,98089.0,0.03295074]
[1733914027365,0.08709744,98090.0,98089.0,0.02995074]
[1733914027366,0.08709686,98090.0,98089.0,0.02995074]
[1733914027563,0.08709686,98090.0,98089.0,0.02095074]
[1733914027765,0.08709686,98090.0,98089.0,0.02395074]
[1733914028563,0.08709686,98090.0,98089.0,0.01363398]
[1733914028893,0.10192665,98090.0,98089.0,0.01363398]
[1733914029087,0.15460236,98090.0,98089.0,0.01363398]
[1733914029517,0.16681996,98090.0,98089.0,0.01363398]